fUSD/lending_fUSD_20251025
["ID","MTS","AMOUNT","RATE_DAILY","PERIOD"]
[392338011,1761360641380,-173.47455477,0.00038356,30]
[392338012,1761360641391,-500.0,0.00038356,30]
[392338013,1761360641403,-566.92,0.00038356,30]
[392338014,1761360641417,-511.17,0.00038356,30]
[392338015,1761360641428,-500.0,0.00038356,30]
[392338016,1761360641440,-500.0,0.00038356,30]
[392338017,1761360641450,-460.76615753,0.00038356,30]
[392338018,1761360641461,-500.0,0.00038356,30]
[392338019,1761360641472,-151.0,0.00038356,30]
[392338020,1761360641483,-394.83764358,0.00038356,30]
[392338021,1761360641496,-500.0,0.00038356,30]
[392338022,1761360641506,-500.0,0.00038356,30]
[392338023,1761360641516,-544.66219462,0.00038356,30]
[392338024,1761360641527,-230.24012555,0.00038356,2]
[392338025,1761360641537,-500.0,0.00038356,30]
[392338026,1761360641549,-1081.22,0.00038356,30]
[392338027,1761360641559,-500.0,0.00038356,30]
[392338028,1761360641570,-500.0,0.00038356,30]
[392338029,1761360641580,-500.0,0.00038356,30]
[392338030,1761360641591,-500.0,0.00038356,30]
[392338031,1761360641600,-500.0,0.00038356,30]
[392338032,1761360641611,-500.0,0.00038356,30]
[392338033,1761360641620,-196.20333672,0.00038356,30]
[392338034,1761360641630,-151.0,0.00038356,30]
[392338035,1761360641640,-500.0,0.00038356,30]
[392338036,1761360641651,-504.95,0.00038356,30]
[392338037,1761360641660,-500.0,0.00038356,30]
[392338038,1761360641670,-500.0,0.00038356,30]
[392338039,1761360641681,-151.0,0.00038356,30]
[392338040,1761360641691,-500.0,0.00038356,30]
[392338041,1761360641701,-828.82,0.00038356,30]
[392338042,1761360641711,-674.25,0.00038356,30]
[392338043,1761360641721,-500.0,0.00038356,30]
[392338044,1761360641732,-628.44,0.00038356,30]
[392338045,1761360641742,-500.0,0.00038356,30]
[392338046,1761360641752,-501.05,0.00038356,30]
[392338047,1761360641763,-161.52856969,0.00038356,30]
[392338048,1761360641773,-504.84,0.00038356,30]
[392338049,1761360641787,-151.0,0.00038356,30]
[392338050,1761360641803,-500.0,0.00038356,30]
[392338051,1761360641813,-500.0,0.00038356,30]
[392338052,1761360641823,-151.0,0.00038356,30]
[392338053,1761360641833,-500.0,0.00038356,30]
[392338054,1761360641845,-500.0,0.00038356,30]
[392338055,1761360641855,-500.0,0.00038356,30]
[392338056,1761360641866,-151.0,0.00038356,30]
[392338057,1761360641876,-151.0,0.00038356,30]
[392338058,1761360641887,-500.0,0.00038356,30]
[392338059,1761360641897,-151.0,0.00038356,30]
[392338060,1761360641907,-500.0,0.00038356,30]
[392338061,1761360641916,-623.04,0.00038356,30]
[392338062,1761360641926,-152.651188,0.00038356,30]
[392338063,1761360641937,-500.0,0.00038356,30]
[392338064,1761360641947,-157.560013,0.00038356,30]
[392338065,1761360641957,-500.0,0.00038356,30]
[392338066,1761360641969,-500.0,0.00038356,30]
[392338067,1761360641980,-500.0,0.00038356,30]
[392338068,1761360641990,-502.43,0.00038356,30]
[392338069,1761360642000,-500.0,0.00038356,30]
[392338070,1761360642011,-548.9,0.00038356,30]
[392338071,1761360642023,-646.66,0.00038356,30]
[392338072,1761360642034,-500.0,0.00038356,30]
[392338073,1761360642045,-151.0,0.00038356,30]
[392338074,1761360642056,-500.0,0.00038356,30]
[392338075,1761360642067,-500.0,0.00038356,30]
[392338076,1761360642078,-160.492097,0.00038356,30]
[392338077,1761360642090,-500.0,0.00038356,30]
[392338078,1761360642101,-337.56824661,0.00038356,30]
[392338079,1761360642112,-153.305901,0.00038356,30]
[392338080,1761360642124,-500.0,0.00038356,30]
[392338081,1761360642135,-500.0,0.00038356,30]
[392338082,1761360642145,-500.0,0.00038356,30]
[392338083,1761360642156,-500.0,0.00038356,30]
[392338084,1761360642167,-500.0,0.00038356,30]
[392338085,1761360642178,-467.71578717,0.00038356,30]
[392338086,1761360642188,-500.0,0.00038356,30]
[392338087,1761360642199,-500.0,0.00038356,30]
[392338088,1761360642209,-500.0,0.00038356,30]
[392338089,1761360642220,-500.0,0.00038356,30]
[392338090,1761360642231,-500.0,0.00038356,30]
[392338091,1761360642241,-500.0,0.00038356,30]
[392338092,1761360642252,-500.0,0.00038356,30]
[392338093,1761360642262,-500.0,0.00038356,30]
[392338094,1761360642272,-508.79,0.00038356,30]
[392338095,1761360642282,-500.0,0.00038356,30]
[392338096,1761360642293,-500.0,0.00038356,30]
[392338097,1761360642303,-500.0,0.00038356,30]
[392338098,1761360642314,-500.0,0.00038356,30]
[392338099,1761360642324,-500.0,0.00038356,30]
[392338100,1761360642335,-14847.53,0.00038356,30]
[392338101,1761360642345,-500.0,0.00038356,30]
[392338102,1761360642356,-500.0,0.00038356,30]
[392338103,1761360642368,-500.0,0.00038356,30]
[392338104,1761360642378,-500.0,0.00038356,30]
[392338105,1761360642391,-500.0,0.00038356,30]
[392338106,1761360642403,-500.0,0.00038356,30]
[392338107,1761360642416,-500.0,0.00038356,30]
[392338108,1761360642428,-500.0,0.00038356,30]
[392338109,1761360642439,-783.64,0.00038356,30]
[392338110,1761360642450,-677.29,0.00038356,30]
[392338111,1761360642461,-814.23,0.00038356,30]
[392338112,1761360642472,-500.0,0.00038356,30]
[392338113,1761360642483,-500.0,0.00038356,30]
[392338114,1761360642493,-151.914063,0.00038356,30]
[392338115,1761360642504,-153.961455,0.00038356,30]
[392338116,1761360642515,-500.0,0.00038356,30]
[392338117,1761360642526,-500.0,0.00038356,30]
[392338118,1761360642538,-500.0,0.00038356,30]
[392338119,1761360642549,-500.0,0.00038356,30]
[392338120,1761360642559,-151.0,0.00038356,30]
[392338121,1761360642569,-500.0,0.00038356,30]
[392338122,1761360642579,-623.91,0.00038356,30]
[392338123,1761360642590,-151.0,0.00038356,30]
[392338124,1761360642600,-500.0,0.00038356,30]
[392338125,1761360642611,-500.0,0.00038356,30]
[392338126,1761360642622,-500.0,0.00038356,30]
[392338127,1761360642632,-500.0,0.00038356,30]
[392338128,1761360642643,-500.0,0.00038356,30]
[392338129,1761360642655,-500.0,0.00038356,30]
[392338130,1761360642667,-500.0,0.00038356,30]
[392338131,1761360642677,-568.48,0.00038356,30]
[392338132,1761360642691,-500.0,0.00038356,30]
[392338133,1761360642701,-500.0,0.00038356,30]
[392338134,1761360642710,-500.0,0.00038356,2]
[392338137,1761360642719,-612.62,0.00038356,30]
[392338139,1761360642728,-500.0,0.00038356,30]
[392338140,1761360642737,-151.0,0.00038356,30]
[392338141,1761360642746,-152.196432,0.00038356,30]
[392338142,1761360642754,-500.0,0.00038356,30]
[392338143,1761360642764,-500.0,0.00038356,30]
[392338145,1761360642773,-558.03,0.00038356,30]
[392338147,1761360642783,-500.0,0.00038356,30]
[392338148,1761360642795,-500.0,0.00038356,30]
[392338149,1761360642804,-502.2966584,0.00038373,5]
[392338150,1761360643148,-502.42832613,0.00038373,5]
[392338151,1761360643171,-500.0,0.00038373,5]
[392338152,1761360643189,-217.95779982,0.00038373,5]
[392338153,1761360643206,-501.52199648,0.00038373,5]
[392338154,1761360643216,-500.0,0.00038373,5]
[392338155,1761360643225,-502.95869624,0.00038373,5]
[392338156,1761360643233,-500.0,0.00038373,5]
[392338157,1761360643242,-162.66586174,0.00038373,5]
[392338158,1761360643251,-508.52593807,0.00038373,5]
[392338159,1761360643260,-200.0,0.00038373,5]
[392338160,1761360643269,-503.42247773,0.00038373,5]
[392338161,1761360643278,-843.90762503,0.00038413,2]
[392338162,1761360643287,-1011.0,0.00038433,2]
[392338163,1761360643296,-200.0,0.00038451,20]
[392338164,1761360643305,-500.0,0.00038486,120]
[392338165,1761360643313,-1009.0,0.00038503,2]
[392338166,1761360643322,-40532.9985038,0.00038509,3]
[392338167,1761360643331,-43447.6900152,0.00038509,3]
[392338168,1761360643340,-500.0,0.00038518,2]
[392338169,1761360643349,-8689.53800304,0.00038519,3]
[392338170,1761360643358,-151.0,0.00038519,120]
[392338171,1761360643367,-163.771548,0.00038519,120]
[392338172,1761360643375,-151.0,0.00038519,120]
[392338173,1761360643384,-159.557286,0.00038519,120]
[392338174,1761360643393,-151.0,0.00038519,120]
[392338175,1761360643402,-151.0,0.00038519,120]
[392338176,1761360643411,-151.0,0.00038519,120]
[392338177,1761360643420,-94576.9965088,0.00038519,3]
[392338178,1761360643429,-21608.43747309,0.00038519,3]
[392338179,1761360643688,-615.57,0.00038356,30]
[392338180,1761360643698,-73976.48056031,0.00038519,3]
[392338181,1761360643707,-365.18380257,0.00038519,2]
[392338182,1761360643716,-5000.0,0.0003852,2]
[392338183,1761360643724,-500.0,0.00038528,2]
[392338184,1761360643733,-1566.0,0.00038529,5]
[392338185,1761360643743,-151.0,0.00038529,120]
[392338186,1761360643751,-151.0,0.00038529,120]
[392338187,1761360643760,-151.0,0.00038529,120]
[392338188,1761360643769,-200.01809,0.00038529,120]
[392338189,1761360643778,-155.352553,0.00038529,120]
[392338190,1761360643790,-166.436674,0.00038529,120]
[392338191,1761360643802,-151.0,0.00038529,120]
[392338192,1761360643811,-151.0,0.00038529,120]
[392338193,1761360643820,-151.0,0.00038529,120]
[392338194,1761360643828,-151.0,0.00038529,120]
[392338195,1761360643838,-151.0,0.00038529,120]
[392338196,1761360643847,-151.0,0.00038529,120]
[392338197,1761360643856,-151.0,0.00038529,15]
[392338198,1761360643865,-151.0,0.00038529,15]
[392338199,1761360643875,-153.966204,0.00038529,120]
[392338200,1761360643884,-151.0,0.00038529,120]
[392338201,1761360643893,-151.0,0.00038529,120]
[392338202,1761360643902,-156.6138,0.00038529,120]
[392338203,1761360643911,-151.0,0.00038529,120]
[392338204,1761360643919,-151.0,0.00038529,120]
[392338205,1761360643928,-151.0,0.00038529,120]
[392338206,1761360643937,-151.0,0.00038529,120]
[392338207,1761360643947,-151.0,0.00038529,120]
[392338208,1761360643956,-151.0,0.00038529,120]
[392338209,1761360643965,-151.0,0.00038529,120]
[392338210,1761360643974,-151.0,0.00038529,120]
[392338211,1761360643983,-263.590115,0.00038529,120]
[392338212,1761360643993,-151.0,0.00038529,120]
[392338213,1761360644002,-151.0,0.00038529,120]
[392338214,1761360644011,-151.0,0.00038529,120]
[392338215,1761360644020,-151.0,0.00038529,120]
[392338216,1761360644029,-151.0,0.00038529,120]
[392338217,1761360644038,-151.0,0.00038529,120]
[392338218,1761360644047,-151.0,0.00038529,120]
[392338219,1761360644056,-156.614876,0.00038529,120]
[392338220,1761360644065,-151.0,0.00038529,120]
[392338221,1761360644074,-151.0,0.00038529,120]
[392338222,1761360644083,-151.0,0.00038529,120]
[392338223,1761360644092,-151.0,0.00038529,120]
[392338224,1761360644101,-151.0,0.00038529,120]
[392338225,1761360644112,-151.0,0.00038529,120]
[392338226,1761360644129,-151.0,0.00038529,120]
[392338227,1761360644152,-151.0,0.00038529,120]
[392338228,1761360644162,-152.871308,0.00038529,120]
[392338229,1761360644171,-164.71026,0.00038529,120]
[392338230,1761360644181,-152.470298,0.00038529,120]
[392338231,1761360644190,-151.0,0.00038529,120]
[392338232,1761360644200,-151.0,0.00038529,120]
[392338233,1761360644210,-151.0,0.00038529,120]
[392338234,1761360644220,-154.823841,0.00038529,120]
[392338235,1761360644232,-151.706033,0.00038529,120]
[392338236,1761360644242,-151.0,0.00038529,120]
[392338237,1761360644251,-151.0,0.00038529,120]
[392338238,1761360644260,-151.0,0.00038529,120]
[392338239,1761360644269,-151.0,0.00038529,120]
[392338240,1761360644278,-151.0,0.00038529,120]
[392338241,1761360644287,-151.0,0.00038529,120]
[392338242,1761360644296,-29749.29219013,0.00038529,2]
[392338243,1761360644315,-305.55524937,0.00038529,2]
[392338244,1761360645780,-286.8,0.00033622,2]
[392338245,1761360645790,-83.04254318,0.00036889,2]
[392338246,1761360645888,-66.95745682,0.00036889,2]
[392338247,1761360645897,-370.1401105,0.00038356,30]
[392338248,1761360646046,-151.0,0.00033622,2]
[392338249,1761360646055,-129.8598895,0.00038356,30]
[392338250,1761360646064,-500.0,0.00038356,30]
[392338251,1761360646073,-472.755,0.00038529,2]
[392338269,1761361519539,203.96862219,0.00036702,30]
[392338270,1761361581080,161.0,0.000225,3]
[392338285,1761361831936,-150.0,0.000242,2]
[392338286,1761361831946,-163.92303194,0.0002662,2]
[392338287,1761361832044,-91.8717543,0.0002662,2]
[392338288,1761361832053,-151.24,0.00027068,2]
[392338289,1761361832063,-150.0,0.00027068,2]
[392338290,1761361832073,-168.20821007,0.000277,2]
[392338291,1761361832083,-168.20821006,0.00027883,2]
[392338292,1761361832095,-30.2748376,0.00027982,2]
[392338293,1761361832106,-245.7251624,0.00027982,2]
[392338294,1761361832116,-221.5548376,0.00027982,2]
[392338295,1761361832128,-978.4451624,0.00027982,2]
[392338296,1761361832138,-151.0,0.00027983,2]
[392338297,1761361832148,-151.0,0.00027983,2]
[392338298,1761361832159,-151.0,0.00027983,2]
[392338299,1761361832170,-151.0,0.00027983,2]
[392338300,1761361832181,-151.0,0.00027983,2]
[392338301,1761361832192,-151.0,0.00027983,2]
[392338302,1761361832201,-151.0,0.00027983,2]
[392338304,1761361832211,-151.0,0.00027983,2]
[392338306,1761361832219,-151.0,0.00027983,2]
[392338308,1761361832228,-159.19244305,0.00027983,2]
[392338310,1761361832237,-25550.67796139,0.00028,2]
[392338312,1761361832248,-14449.32203861,0.00028,2]
[392338314,1761361832257,-175.97,0.0002884,2]
[392338316,1761361832272,-500.0,0.00029,2]
[392338331,1761361832429,-502.18229381,0.00029,2]
[392338332,1761361832439,-1000.0,0.00029548,2]
[392338333,1761361832448,-506.39899745,0.00029715,2]
[392338334,1761361832457,-987.8,0.00029815,2]
[392338335,1761361832466,-9999.99,0.00029815,2]
[392338336,1761361832475,-150.99,0.00029815,2]
[392338337,1761361832484,-1706.71495485,0.00029815,2]
[392338338,1761361832502,-12012.13597326,0.00029815,2]
[392338339,1761361832514,-2245.82907189,0.00029815,2]
[392338340,1761361832523,-5962.06,0.00029815,2]
[392338341,1761361832534,-259.98051649,0.00030096,2]
[392338342,1761361832544,-305.932,0.00030096,25]
[392338343,1761361832553,-457.0,0.00030353,2]
[392338344,1761361832563,-162.06981314,0.00030687,2]
[392338345,1761361832574,-250.93599452,0.00031976,2]
[392338346,1761361832584,-1497.22,0.00034203,2]
[392338347,1761361832594,-252.0,0.00034457,7]
[392338348,1761361832604,-168.0,0.00035147,2]
[392338349,1761361832614,-3305.29,0.00035271,2]
[392338350,1761361832624,-168.0,0.00035285,2]
[392338351,1761361832635,-300.0,0.0003529,7]
[392338352,1761361832645,-180.47,0.00035435,2]
[392338353,1761361832655,-1427.0,0.00035447,2]
[392338354,1761361832665,-252.0,0.00035453,2]
[392338355,1761361832674,-168.0,0.00035497,2]
[392338356,1761361832684,-6195.96597099,0.00035575,2]
[392338391,1761361840041,-524.24402901,0.00035575,2]
[392338392,1761361840051,-429.52,0.00035624,2]
[392338393,1761361840060,-168.0,0.00035626,7]
[392338394,1761361840070,-168.0,0.00035695,120]
[392338395,1761361840083,-1427.0,0.00035847,7]
[392338396,1761361840092,-150.0,0.00035874,2]
[392338397,1761361840102,-610.0,0.00035898,2]
[392338398,1761361840111,-233.7833,0.00035964,2]
[392338399,1761361840121,-1000.0,0.00036,120]
[392338400,1761361840131,-601.34,0.00036064,2]
[392338401,1761361840140,-6582.13564973,0.00036316,2]
[392338402,1761361840150,-1093.0,0.00036372,120]
[392338403,1761361840159,-1093.0,0.00036376,2]
[392338404,1761361840169,-476.4830027,0.00036389,2]
[392338405,1761361840178,-550.97062142,0.00036413,15]
[392338406,1761361840188,-165.55018708,0.00036413,15]
[392338407,1761361840198,-103030.73082646,0.00036414,2]
[392338408,1761361840207,-200.0,0.00036416,2]
[392338409,1761361840216,-176.13,0.00036492,120]
[392338410,1761361840227,-5543.76007562,0.00036633,2]
[392338411,1761361840236,-1093.0,0.00036761,7]
[392338412,1761361840246,-2782.84,0.00036763,2]
[392338413,1761361840255,-33170.7581,0.00036789,2]
[392338414,1761361840264,-1000.0,0.00036789,2]
[392338415,1761361840273,-1000.0,0.00036789,2]
[392338416,1761361840286,-151.18,0.00036823,14]
[392338417,1761361840295,-25089.55,0.00036826,2]
[392338418,1761361840304,-6582.13564969,0.00036836,2]
[392338419,1761361840313,-150.143,0.00036889,2]
[392338420,1761361840322,-264.111,0.00036889,2]
[392338421,1761361840331,-150.311,0.00036889,2]
[392338422,1761361840340,-150.0,0.00036889,2]
[392338423,1761361840350,-150.0,0.00036889,2]
[392338424,1761361840359,-150.0,0.00036889,2]
[392338425,1761361840368,-2054.0,0.00036889,2]
[392338426,1761361840378,-819.0,0.00036889,2]
[392338427,1761361840387,-3414.0,0.00036889,2]
[392338428,1761361840397,-572.0,0.00036889,2]
[392338429,1761361840406,-606.0,0.00036889,2]
[392338430,1761361840416,-1695.381,0.00036889,2]
[392338431,1761361840425,-1312.0,0.00036889,2]
[392338432,1761361840434,-1270.0,0.00036889,2]
[392338433,1761361840443,-821.0,0.00036889,2]
[392338434,1761361840453,-6541.0,0.00036889,2]
[392338435,1761361840462,-6458.0,0.00036889,2]
[392338436,1761361840471,-3488.0,0.00036889,2]
[392338437,1761361840484,-558.0,0.00036889,2]
[392338438,1761361840493,-150.0,0.00036952,2]
[392338439,1761361840508,-255.09551248,0.00037007,2]
[392338440,1761361840516,-1093.0,0.00037033,2]
[392338441,1761361840525,-150.0,0.00037129,2]
[392338442,1761361840534,-150.0,0.00037129,120]
[392338443,1761361840543,-167.62422574,0.000372,120]
[392338444,1761361840552,-500.0,0.0003726,7]
[392338445,1761361840561,-600.0,0.0003726,7]
[392338446,1761361840570,-500.0,0.0003726,7]
[392338447,1761361840579,-1428.0,0.00037346,2]
[392338448,1761361840588,-6582.13564969,0.00037356,2]
[392338449,1761361840597,-180.47,0.00037404,2]
[392338450,1761361840606,-601.34,0.00037417,2]
[392338451,1761361840615,-375.87287216,0.00037471,2]
[392338452,1761361840624,-2131.19932607,0.0003768,3]
[392338453,1761361840633,-2258.07936945,0.0003769,2]
[392338454,1761361840642,-917.13914872,0.0003769,10]
[392338455,1761361840652,-166.66312689,0.00037699,15]
[392338456,1761361840661,-1500.0,0.000377,13]
[392338457,1761361840670,-500.0,0.00037762,30]
[392338458,1761361840679,-2131.19932607,0.00037763,3]
[392338459,1761361840688,-160.26400388,0.00037773,5]
[392338460,1761361840698,-508.52593807,0.00037773,5]
[392338461,1761361840708,-21311.9932607,0.0003778,3]
[392338462,1761361840718,-500.0,0.00037789,2]
[392338463,1761361840727,-44755.1858475,0.0003779,3]
[392338464,1761361840736,-156817.59193432,0.000378,2]
[392338472,1761362040870,161.65,0.00013699,2]
[392338474,1761362707523,20326.0,0.00015,2]
[392338475,1761362707547,12338.58,0.00015,2]
[392338476,1761362707573,73000.0,0.00015,2]
[392338477,1761362707598,35678.08239602,0.00015,2]
[392338487,1761362816973,5000.0,0.000162,5]
[392338490,1761362875179,22014.12255638,0.00015,2]
[392338511,1761363032152,-161.65,0.00026027,2]
[392338512,1761363032162,-150.0,0.00027007,2]
[392338513,1761363032171,-150.0,0.00027007,2]
[392338514,1761363032180,-1238.65712508,0.00032,7]
[392338515,1761363032208,-819.78286601,0.00032,7]
[392338516,1761363032219,-8.97443848,0.00032,7]
[392338517,1761363032229,-181.94,0.0003366,2]
[392338518,1761363032238,-820.09898712,0.00035013,3]
[392338519,1761363032370,-779.90101288,0.00035013,3]
[392338520,1761363032380,-150.0,0.00035014,7]
[392338521,1761363032390,-150.27873698,0.00035014,7]
[392338522,1761363032401,-150.0,0.00035014,7]
[392338523,1761363032410,-150.0,0.00035014,7]
[392338524,1761363032423,-150.32747781,0.00035014,7]
[392338525,1761363032433,-150.0,0.00035014,7]
[392338526,1761363032443,-194.59024156,0.00035014,7]
[392338527,1761363032452,-150.0,0.00035014,7]
[392338528,1761363032462,-154.93883718,0.00035014,7]
[392338529,1761363032472,-152.72175361,0.00035014,7]
[392338530,1761363032482,-264.99211853,0.00035014,7]
[392338531,1761363032491,-171.11358303,0.00035014,7]
[392338532,1761363032501,-153.70308771,0.00035014,7]
[392338534,1761363032510,-150.0,0.00035014,7]
[392338536,1761363032520,-242.1708611,0.00035014,7]
[392338538,1761363032528,-154.21326682,0.00035014,7]
[392338540,1761363032538,-150.0,0.00035014,7]
[392338542,1761363032547,-428.0,0.00035239,2]
[392338543,1761363032557,-150.0,0.000355,7]
[392338544,1761363032567,-150.0,0.000355,7]
[392338545,1761363032577,-168.0,0.00035595,2]
[392338546,1761363032587,-150.0,0.00035792,7]
[392338547,1761363032596,-168.0,0.00035828,2]
[392338548,1761363032606,-9999.99,0.00035828,2]
[392338549,1761363032616,-246.79778387,0.00035843,2]
[392338550,1761363032626,-175.0,0.00035846,120]
[392338551,1761363032636,-150.99,0.00035846,2]
[392338552,1761363032645,-168.0,0.00035861,2]
[392338553,1761363032659,-168.0,0.00035871,2]
[392338554,1761363032668,-200.0,0.00035964,2]
[392338556,1761363032677,-1000.0,0.0003598,2]
[392338557,1761363032686,-150.0,0.00035986,7]
[392338558,1761363032695,-150.0,0.00035986,7]
[392338560,1761363032705,-150.0,0.00035986,7]
[392338562,1761363032715,-150.0,0.00036088,2]
[392338563,1761363032724,-666.0,0.00036158,3]
[392338564,1761363032733,-168.0,0.00036308,2]
[392338565,1761363032742,-150.0,0.00036311,7]
[392338566,1761363032751,-150.0,0.00036311,7]
[392338567,1761363032760,-1000.0,0.00036314,2]
[392338568,1761363032769,-810.17461105,0.00036354,2]
[392338569,1761363032778,-150.0,0.00036473,7]
[392338570,1761363032787,-150.0,0.00036473,7]
[392338571,1761363032796,-168.0,0.00036485,2]
[392338572,1761363032805,-500.0,0.00036499,2]
[392338573,1761363032814,-250.0,0.00036566,2]
[392338574,1761363032823,-150.0,0.0003657,7]
[392338575,1761363032832,-810.17461105,0.0003664,2]
[392338576,1761363032841,-168.0,0.00036641,2]
[392338577,1761363032849,-454.69,0.00036797,120]
[392338578,1761363032860,-151.0,0.00036842,2]
[392338579,1761363032870,-234.6695355,0.00036857,7]
[392338580,1761363032881,-500.0,0.00036857,7]
[392338581,1761363032891,-500.0,0.00036857,15]
[392338582,1761363032903,-500.0,0.00036857,7]
[392338583,1761363032913,-500.0,0.00036857,15]
[392338584,1761363032922,-500.0,0.00036857,15]
[392338585,1761363032931,-420.06772543,0.00036857,7]
[392338586,1761363032940,-500.0,0.00036857,15]
[392338587,1761363032949,-500.0,0.00036857,15]
[392338588,1761363032962,-500.0,0.00036857,15]
[392338589,1761363032972,-500.0,0.00036857,15]
[392338590,1761363032982,-500.0,0.00036857,15]
[392338591,1761363032992,-500.0,0.00036857,15]
[392338592,1761363033001,-500.0,0.00036857,15]
[392338593,1761363033011,-500.0,0.00036857,15]
[392338594,1761363033020,-500.0,0.00036857,15]
[392338595,1761363033029,-500.0,0.00036857,15]
[392338596,1761363033038,-500.0,0.00036857,15]
[392338597,1761363033047,-500.0,0.00036857,15]
[392338598,1761363033056,-500.0,0.00036857,15]
[392338599,1761363033069,-500.0,0.00036857,15]
[392338600,1761363033078,-500.0,0.00036857,15]
[392338601,1761363033087,-500.0,0.00036857,15]
[392338602,1761363033096,-500.0,0.00036857,15]
[392338603,1761363033105,-500.0,0.00036857,15]
[392338604,1761363033114,-321.511,0.00036862,46]
[392338605,1761363033123,-1312.0,0.00036864,2]
[392338606,1761363033136,-606.0,0.00036864,2]
[392338607,1761363033147,-1592.0,0.00036864,2]
[392338608,1761363033156,-818.0,0.00036864,2]
[392338609,1761363033165,-1270.0,0.00036864,2]
[392338610,1761363033174,-1185.0,0.00036864,2]
[392338611,1761363033183,-903.0,0.00036864,2]
[392338612,1761363033192,-3488.0,0.00036864,2]
[392338613,1761363033202,-582.63819093,0.00036864,2]
[392338614,1761363033230,-500.0,0.00036857,15]
[392338615,1761363033239,-500.0,0.00036857,15]
[392338616,1761363033248,-870.97521336,0.00036864,2]
[392338617,1761363038059,-294.75802627,0.00036857,15]
[392338647,1761363040270,-205.24197373,0.00036857,15]
[392338648,1761363040281,-500.0,0.00036857,15]
[392338649,1761363040290,-500.0,0.00036857,15]
[392338650,1761363040300,-500.0,0.00036857,15]
[392338651,1761363040309,-500.0,0.00036857,15]
[392338652,1761363040319,-500.0,0.00036857,15]
[392338653,1761363040328,-500.0,0.00036857,15]
[392338654,1761363040337,-500.0,0.00036857,15]
[392338655,1761363040347,-500.0,0.00036857,15]
[392338656,1761363040357,-5011.94259571,0.00036864,2]
[392338657,1761363040366,-3414.0,0.00036864,2]
[392338658,1761363040376,-819.0,0.00036864,2]
[392338659,1761363040385,-175.0,0.00036917,7]
[392338660,1761363040396,-810.17461105,0.0003692,2]
[392338661,1761363040405,-500.0,0.00036947,30]
[392338662,1761363040415,-150.0,0.00036959,7]
[392338663,1761363040424,-150.0,0.00036959,7]
[392338664,1761363040433,-150.0,0.00036959,7]
[392338665,1761363040442,-500.0,0.00037007,2]
[392338666,1761363040451,-500.0,0.00037062,2]
[392338667,1761363040460,-1304.92,0.00037067,2]
[392338668,1761363040469,-8951.67,0.00037067,2]
[392338669,1761363040478,-500.0,0.00037117,2]
[392338670,1761363040487,-500.0,0.00037171,2]
[392338671,1761363040496,-810.17461105,0.00037225,2]
[392338672,1761363040506,-500.0,0.00037226,2]
[392338673,1761363040517,-500.0,0.0003726,7]
[392338674,1761363040526,-500.0,0.0003726,7]
[392338675,1761363040536,-1000.0,0.0003726,7]
[392338676,1761363040545,-500.0,0.00037281,2]
[392338677,1761363040554,-500.0,0.00037336,2]